fUSD/lending_fUSD_20250202
["ID","MTS","AMOUNT","RATE_DAILY","PERIOD"]
[351268001,1738504251751,-2131.06,0.00010958,2]
[351268002,1738504251760,-451.09943525,0.00011095,2]
[351268003,1738504251769,-500.0,0.00011095,2]
[351268004,1738504251778,-500.0,0.00011095,2]
[351268005,1738504251789,-635.75,0.00011095,2]
[351268006,1738504251799,-577.14,0.00011095,2]
[351268007,1738504251811,-500.0,0.00011095,2]
[351268008,1738504251821,-535.02,0.00011095,2]
[351268009,1738504251831,-4758.77,0.00011095,2]
[351268010,1738504251841,-500.0,0.00011095,2]
[351268011,1738504251853,-1040.09,0.00011095,2]
[351268012,1738504251863,-500.0,0.00011095,2]
[351268013,1738504251874,-500.0,0.00011095,2]
[351268014,1738504251885,-500.0,0.00011095,2]
[351268015,1738504251896,-1651.88,0.00011095,2]
[351268016,1738504251911,-2719.88,0.00011095,2]
[351268017,1738504251922,-500.0,0.00011095,2]
[351268018,1738504251935,-1058.2,0.00011095,2]
[351268019,1738504251949,-500.0,0.00011095,2]
[351268020,1738504251961,-500.0,0.00011095,2]
[351268021,1738504251972,-1016.81,0.00011095,2]
[351268022,1738504251983,-556.1,0.00011095,2]
[351268023,1738504251994,-500.0,0.00011095,2]
[351268024,1738504252005,-500.0,0.00011095,2]
[351268025,1738504252016,-2588.77,0.00011095,2]
[351268026,1738504252027,-500.0,0.00011095,2]
[351268027,1738504252038,-500.0,0.00011095,2]
[351268028,1738504252050,-500.0,0.00011095,2]
[351268029,1738504252062,-500.0,0.00011095,2]
[351268030,1738504252073,-500.0,0.00011095,2]
[351268031,1738504252084,-932.81,0.00011095,2]
[351268032,1738504252095,-1942.11,0.00011095,2]
[351268033,1738504252106,-500.0,0.00011095,2]
[351268034,1738504252117,-500.0,0.00011095,2]
[351268035,1738504252129,-500.0,0.00011095,2]
[351268036,1738504252141,-504.43781728,0.00011095,2]
[351268037,1738504252160,-2418.85,0.00011095,2]
[351268038,1738504252175,-1733.68,0.00011095,2]
[351268039,1738504252187,-500.0,0.00011095,2]
[351268040,1738504252198,-2393.49,0.00011095,2]
[351268041,1738504252210,-500.0,0.00011095,2]
[351268042,1738504252221,-500.0,0.00011095,2]
[351268043,1738504252232,-566.87,0.00011095,2]
[351268044,1738504252243,-500.0,0.00011095,2]
[351268045,1738504252254,-3124.44,0.00011095,2]
[351268046,1738504252270,-500.0,0.00011095,2]
[351268047,1738504252287,-692.82,0.00011095,2]
[351268048,1738504252299,-500.0,0.00011095,2]
[351268049,1738504252310,-2525.16,0.00011095,2]
[351268050,1738504252320,-1914.95,0.00011095,2]
[351268051,1738504252331,-8288.01,0.00011095,2]
[351268052,1738504252341,-500.0,0.00011095,2]
[351268053,1738504252352,-1132.95,0.00011095,2]
[351268054,1738504252363,-500.0,0.00011095,2]
[351268055,1738504252374,-884.77,0.00011095,2]
[351268056,1738504252385,-500.0,0.00011095,2]
[351268057,1738504252396,-4152.35,0.00011095,2]
[351268058,1738504252412,-500.0,0.00011095,2]
[351268059,1738504252422,-500.0,0.00011095,2]
[351268060,1738504252432,-406.27614124,0.00011095,2]
[351268061,1738504252442,-500.0,0.00011095,2]
[351268062,1738504252452,-1549.92,0.00011095,2]
[351268063,1738504252463,-2155.85,0.00011095,2]
[351268064,1738504252473,-3699.04,0.00011095,2]
[351268065,1738504252484,-3349.22,0.00011095,2]
[351268066,1738504252494,-500.0,0.00011095,2]
[351268067,1738504252504,-500.0,0.00011095,2]
[351268068,1738504252514,-553.14,0.00011095,2]
[351268069,1738504252523,-500.0,0.00011095,2]
[351268070,1738504252533,-500.0,0.00011095,2]
[351268071,1738504252543,-500.0,0.00011095,2]
[351268072,1738504252552,-5222.05,0.00011095,2]
[351268073,1738504252562,-500.0,0.00011095,2]
[351268074,1738504252572,-173.55606986,0.00011095,2]
[351268075,1738504252581,-500.0,0.00011095,2]
[351268076,1738504252591,-500.0,0.00011095,2]
[351268077,1738504252600,-1265.95,0.00011095,2]
[351268078,1738504252610,-1887.09,0.00011095,2]
[351268079,1738504252619,-4613.26,0.00011095,2]
[351268080,1738504252628,-500.0,0.00011095,2]
[351268081,1738504252637,-500.0,0.00011095,2]
[351268082,1738504252648,-1975.44,0.00011095,2]
[351268083,1738504252661,-7500.21,0.00011095,2]
[351268084,1738504252674,-1842.34,0.00011095,2]
[351268085,1738504252685,-500.0,0.00011095,2]
[351268086,1738504252696,-257.33440895,0.00011095,2]
[351268087,1738504252707,-6467.51,0.00011095,2]
[351268088,1738504252718,-2260.28,0.00011095,2]
[351268089,1738504252729,-500.0,0.00011095,2]
[351268090,1738504252739,-500.0,0.00011095,2]
[351268091,1738504252750,-4127.19,0.00011095,2]
[351268092,1738504252759,-625.86,0.00011095,2]
[351268093,1738504252769,-500.0,0.00011095,2]
[351268094,1738504252779,-522.95,0.00011095,2]
[351268095,1738504252788,-500.0,0.00011095,2]
[351268096,1738504252797,-500.0,0.00011095,2]
[351268097,1738504252807,-2930.25,0.00011095,2]
[351268098,1738504252817,-500.0,0.00011095,2]
[351268099,1738504252826,-500.0,0.00011095,2]
[351268100,1738504252835,-500.0,0.00011095,2]
[351268101,1738504252845,-7139.72,0.00011095,2]
[351268102,1738504252854,-218.68835765,0.00011095,2]
[351268103,1738504252864,-1487.62,0.00011095,2]
[351268104,1738504252874,-2190.38,0.00011095,2]
[351268105,1738504252884,-7605.13,0.00011095,2]
[351268106,1738504252894,-500.0,0.00011095,2]
[351268107,1738504252905,-506.7349369,0.00011095,2]
[351268108,1738504252915,-1340.89,0.00011095,2]
[351268109,1738504252925,-527.51,0.00011095,2]
[351268110,1738504252934,-500.0,0.00011095,2]
[351268111,1738504252943,-500.0,0.00011095,2]
[351268112,1738504252953,-500.0,0.00011095,2]
[351268113,1738504252963,-500.0,0.00011095,2]
[351268114,1738504252972,-529.32819938,0.00011095,2]
[351268115,1738504252981,-500.0,0.00011095,2]
[351268116,1738504252991,-3333.87,0.00011095,2]
[351268117,1738504253000,-500.0,0.00011095,2]
[351268118,1738504253010,-500.0,0.00011095,2]
[351268119,1738504253019,-500.0,0.00011095,2]
[351268120,1738504253028,-4428.35,0.00011095,2]
[351268121,1738504253038,-749.13,0.00011095,2]
[351268122,1738504253047,-500.0,0.00011095,2]
[351268123,1738504253057,-500.0,0.00011095,2]
[351268124,1738504253066,-500.0,0.00011095,2]
[351268125,1738504253076,-500.0,0.00011095,2]
[351268126,1738504253086,-724.96,0.00011095,2]
[351268127,1738504253096,-6018.72,0.00011095,2]
[351268128,1738504253106,-2737.51,0.00011095,2]
[351268129,1738504253115,-500.0,0.00011095,2]
[351268130,1738504253125,-500.0,0.00011095,2]
[351268131,1738504253135,-2541.32,0.00011095,2]
[351268132,1738504253344,-5735.11,0.00011095,2]
[351268133,1738504253356,-1106.65,0.00011095,2]
[351268134,1738504253368,-500.0,0.00011095,2]
[351268135,1738504253379,-700.57,0.00011095,2]
[351268136,1738504253388,-12278.4,0.00011095,2]
[351268137,1738504253398,-500.0,0.00011095,2]
[351268138,1738504253410,-1347.61,0.00011095,2]
[351268139,1738504253420,-500.0,0.00011095,2]
[351268140,1738504253430,-4277.99,0.00011095,2]
[351268141,1738504253440,-2014.34,0.00011095,2]
[351268142,1738504253450,-9838.32,0.00011095,2]
[351268143,1738504253460,-543.94,0.00011095,2]
[351268144,1738504253470,-1686.35,0.00011095,2]
[351268145,1738504253480,-500.0,0.00011095,2]
[351268146,1738504253490,-500.0,0.00011095,2]
[351268147,1738504253500,-515.61156187,0.00011095,2]
[351268148,1738504253509,-13955.14,0.00011095,2]
[351268149,1738504253519,-500.0,0.00011095,2]
[351268150,1738504253528,-500.0,0.00011095,2]
[351268151,1738504253538,-500.15,0.00011095,2]
[351268152,1738504253548,-8050.75,0.00011095,2]
[351268153,1738504253558,-500.0,0.00011095,2]
[351268154,1738504253568,-500.0,0.00011095,2]
[351268155,1738504253578,-500.0,0.00011095,2]
[351268156,1738504253587,-500.0,0.00011095,2]
[351268157,1738504253597,-500.0,0.00011095,2]
[351268158,1738504253607,-500.0,0.00011095,2]
[351268159,1738504253617,-1328.42,0.00011095,2]
[351268160,1738504253627,-4979.31,0.00011095,2]
[351268161,1738504253636,-500.0,0.00011095,2]
[351268162,1738504253646,-7528.65,0.00011095,2]
[351268163,1738504253656,-500.0,0.00011095,2]
[351268164,1738504253666,-500.0,0.00011095,2]
[351268165,1738504253676,-8671.46,0.00011095,2]
[351268166,1738504253685,-500.0,0.00011095,2]
[351268167,1738504253695,-500.0,0.00011095,2]
[351268168,1738504253704,-500.0,0.00011095,2]
[351268169,1738504253714,-500.0,0.00011095,2]
[351268170,1738504253723,-500.0,0.00011095,2]
[351268171,1738504253733,-500.0,0.00011095,2]
[351268172,1738504253742,-500.0,0.00011095,2]
[351268173,1738504253751,-500.0,0.00011095,2]
[351268174,1738504253761,-500.0,0.00011095,2]
[351268175,1738504253771,-500.0,0.00011095,2]
[351268176,1738504253780,-4988.6,0.00011095,2]
[351268177,1738504253789,-500.0,0.00011095,2]
[351268178,1738504253800,-1284.16,0.00011095,2]
[351268179,1738504253809,-651.92,0.00011095,2]
[351268180,1738504253819,-2888.57,0.00011095,2]
[351268181,1738504253829,-572.58,0.00011095,2]
[351268182,1738504253838,-663.18,0.00011095,2]
[351268183,1738504253848,-500.0,0.00011095,2]
[351268184,1738504253857,-1242.68,0.00011095,2]
[351268185,1738504253867,-500.0,0.00011095,2]
[351268186,1738504253878,-500.0,0.00011095,2]
[351268187,1738504253888,-500.0,0.00011095,2]
[351268188,1738504253898,-3206.11,0.00011095,2]
[351268189,1738504253909,-500.0,0.00011095,2]
[351268190,1738504253918,-692.3,0.00011095,2]
[351268191,1738504253928,-500.0,0.00011095,2]
[351268192,1738504253937,-623.47768069,0.00011095,2]
[351268193,1738504253947,-500.0,0.00011095,2]
[351268194,1738504253956,-3656.21,0.00011095,2]
[351268195,1738504253966,-500.0,0.00011095,2]
[351268196,1738504253976,-540.22794484,0.00011095,2]
[351268197,1738504253985,-552.81,0.00011095,2]
[351268198,1738504253995,-500.0,0.00011095,2]
[351268199,1738504254005,-500.0,0.00011095,2]
[351268200,1738504254015,-500.0,0.00011095,2]
[351268201,1738504254024,-500.0,0.00011095,2]
[351268202,1738504254033,-500.0,0.00011095,2]
[351268203,1738504254043,-500.0,0.00011095,2]
[351268204,1738504254052,-500.0,0.00011095,2]
[351268205,1738504254062,-500.0,0.00011095,2]
[351268206,1738504254071,-500.0,0.00011095,2]
[351268207,1738504254081,-602.38472574,0.00011095,2]
[351268208,1738504254090,-4905.43,0.00011095,2]
[351268209,1738504254099,-3947.41,0.00011095,2]
[351268210,1738504254109,-501.59121561,0.00011095,2]
[351268211,1738504254119,-1981.9,0.00011095,2]
[351268212,1738504254129,-508.72498364,0.00011095,2]
[351268213,1738504254139,-3557.6,0.00011095,2]
[351268214,1738504254149,-510.53057765,0.00011095,2]
[351268215,1738504254160,-500.0,0.00011095,2]
[351268216,1738504254172,-500.0,0.00011095,2]
[351268217,1738504254181,-1643.29,0.00011095,2]
[351268218,1738504254191,-5849.84416678,0.00011095,2]
[351268219,1738504254207,-1520.0,0.00011095,2]
[351268220,1738504254219,-7471.53583322,0.00011095,2]
[351268221,1738504254229,-500.0,0.00011095,2]
[351268222,1738504254238,-542.27,0.00011095,2]
[351268223,1738504254249,-500.0,0.00011095,2]
[351268224,1738504254258,-1169.41,0.00011095,2]
[351268225,1738504254267,-500.0,0.00011095,2]
[351268226,1738504254278,-1209.50688257,0.00011095,2]
[351268227,1738504254291,-608.50311743,0.00011095,2]
[351268228,1738504254300,-246.31414,0.00011095,2]
[351268229,1738504254311,-548.45586,0.00011095,2]
[351268230,1738504254321,-500.0,0.00011095,2]
[351268231,1738504254331,-500.0,0.00011095,2]
[351268232,1738504254340,-7602.03558185,0.00011095,2]
[351268233,1738504254352,-941.53953476,0.00011095,2]
[351268234,1738504254364,-1330.55565,0.00011095,2]
[351268235,1738504254375,-517.60376348,0.00011095,2]
[351268236,1738504254395,-1716.52546991,0.00011095,2]
[351268237,1738504254407,-299.05880228,0.00011095,2]
[351268238,1738504254416,-500.0,0.00011095,2]
[351268239,1738504254426,-500.0,0.00011095,2]
[351268240,1738504254435,-1065.17,0.00011095,2]
[351268241,1738504254445,-2162.4,0.00011095,2]
[351268242,1738504254454,-500.0,0.00011095,2]
[351268243,1738504254464,-512.20095484,0.00011095,2]
[351268244,1738504254474,-500.0,0.00011095,2]
[351268245,1738504254483,-500.0,0.00011095,2]
[351268246,1738504254493,-500.0,0.00011095,2]
[351268247,1738504254502,-500.0,0.00011095,2]
[351268248,1738504254511,-11811.14,0.00011095,2]
[351268249,1738504254521,-2656.04,0.00011095,2]
[351268250,1738504254531,-503.19221756,0.00011095,2]
[351268251,1738504254540,-500.0,0.00011095,2]
[351268252,1738504254549,-1449.28,0.00011095,2]
[351268253,1738504254558,-500.0,0.00011095,2]
[351268254,1738504254568,-500.0,0.00011095,2]
[351268255,1738504254577,-5655.33,0.00011095,2]
[351268256,1738504254587,-500.0,0.00011095,2]
[351268257,1738504254596,-725.88,0.00011095,2]
[351268258,1738504254606,-500.0,0.00011095,2]
[351268259,1738504254616,-1879.37,0.00011095,2]
[351268260,1738504254626,-2237.55,0.00011095,2]
[351268261,1738504254635,-500.0,0.00011095,2]
[351268262,1738504254645,-500.0,0.00011095,2]
[351268263,1738504254656,-1663.9,0.00011095,2]
[351268264,1738504254665,-500.0,0.00011095,2]
[351268265,1738504254674,-500.0,0.00011095,2]
[351268266,1738504254683,-500.0,0.00011095,2]
[351268267,1738504254692,-500.89,0.00011095,2]
[351268268,1738504254702,-2994.29,0.00011095,2]
[351268269,1738504254712,-500.0,0.00011095,2]
[351268270,1738504254721,-651.46,0.00011095,2]
[351268271,1738504254731,-500.0,0.00011095,2]
[351268272,1738504254740,-500.0,0.00011095,2]
[351268273,1738504254749,-500.0,0.00011095,2]
[351268274,1738504254758,-500.0,0.00011095,2]
[351268275,1738504254767,-899.76,0.00011095,2]
[351268276,1738504254777,-10069.92,0.00011095,2]
[351268277,1738504254787,-500.0,0.00011095,2]
[351268278,1738504254807,-2131.06,0.00011095,2]
[351268279,1738504254820,-3770.1772503,0.00011099,2]
[351268280,1738504254829,-3770.17725029,0.00011099,2]
[351268281,1738504254838,-3770.17725029,0.00011099,2]
[351268282,1738504254847,-3770.17725029,0.00011099,2]
[351268283,1738504254856,-500.0,0.00011131,2]
[351268284,1738504254865,-3468.75,0.00011131,2]
[351268285,1738504254874,-2973.17,0.00011131,2]
[351268286,1738504254883,-727.2,0.00011131,2]
[351268287,1738504254891,-4399.71,0.00011131,2]
[351268288,1738504254900,-2677.2,0.00011131,2]
[351268289,1738504254912,-1594.63,0.00011131,2]
[351268290,1738504254921,-2774.99,0.00011131,2]
[351268291,1738504254931,-2506.27,0.00011131,2]
[351268292,1738504254939,-3691.82,0.00011131,2]
[351268293,1738504254948,-2224.24,0.00011131,2]
[351268294,1738504254958,-8875.35,0.00011131,2]
[351268295,1738504254967,-15774.79,0.00011131,2]
[351268296,1738504254976,-3052.76,0.00011131,2]
[351268297,1738504254985,-4943.15,0.00011131,2]
[351268298,1738504254995,-1000.0,0.00011132,2]
[351268299,1738504255003,-150.0,0.00011144,2]
[351268300,1738504255013,-150.0,0.00011144,2]
[351268301,1738504255022,-150.0,0.00011144,2]
[351268302,1738504255031,-3770.17725029,0.00011162,2]
[351268303,1738504255041,-160.68382969,0.00011218,2]
[351268304,1738504255050,-311.05431154,0.00011231,2]
[351268305,1738504255060,-500.0,0.00011231,2]
[351268306,1738504255069,-1513.68,0.00011231,2]
[351268307,1738504255078,-500.0,0.00011231,2]
[351268308,1738504255087,-500.0,0.00011231,2]
[351268309,1738504255097,-500.0,0.00011231,2]
[351268310,1738504255106,-9257.87,0.00011231,2]
[351268311,1738504255115,-1328.85,0.00011231,2]
[351268312,1738504255124,-8231.95,0.00011231,2]
[351268313,1738504255133,-500.0,0.00011231,2]
[351268314,1738504255142,-1844.24,0.00011231,2]
[351268315,1738504255155,-899.57,0.00011231,2]
[351268316,1738504255164,-4399.71,0.00011231,2]
[351268317,1738504255174,-4399.71,0.00011231,2]
[351268318,1738504255183,-4399.71,0.00011231,2]
[351268319,1738504255193,-2416.75,0.00011231,2]
[351268320,1738504255203,-599.39,0.00011232,2]
[351268321,1738504255212,-500.0,0.00011232,2]
[351268322,1738504255221,-1275.83,0.00011232,2]
[351268323,1738504255231,-505.18754177,0.00011232,2]
[351268324,1738504255240,-500.0,0.00011232,2]
[351268325,1738504255249,-500.0,0.00011232,2]
[351268326,1738504255259,-500.0,0.00011232,2]
[351268327,1738504255268,-562.74,0.00011232,2]
[351268328,1738504255278,-500.0,0.00011232,2]
[351268329,1738504255287,-659.01,0.00011232,2]
[351268330,1738504255296,-500.0,0.00011232,2]
[351268331,1738504255305,-500.0,0.00011232,2]
[351268332,1738504255315,-500.0,0.00011232,2]
[351268333,1738504255324,-500.0,0.00011232,2]
[351268334,1738504255334,-500.0,0.00011232,2]
[351268335,1738504255343,-500.0,0.00011232,2]
[351268336,1738504255353,-500.0,0.00011232,2]
[351268337,1738504255362,-500.0,0.00011232,2]
[351268338,1738504255371,-512.51009289,0.00011232,2]
[351268339,1738504255380,-500.65,0.00011232,2]
[351268340,1738504255389,-596.08,0.00011232,2]
[351268341,1738504255400,-867.7,0.00011232,2]
[351268342,1738504255411,-500.0,0.00011232,2]
[351268343,1738504255420,-500.0,0.00011232,2]
[351268344,1738504255429,-500.0,0.00011232,2]
[351268345,1738504255438,-500.0,0.00011232,2]
[351268346,1738504255447,-500.0,0.00011232,2]
[351268347,1738504255456,-500.0,0.00011232,2]
[351268348,1738504255465,-500.96,0.00011232,2]
[351268349,1738504255475,-500.0,0.00011232,2]
[351268350,1738504255483,-500.0,0.00011232,2]
[351268351,1738504255493,-500.0,0.00011232,2]
[351268352,1738504255502,-500.0,0.00011232,2]
[351268353,1738504255511,-500.0,0.00011232,2]
[351268354,1738504255520,-500.0,0.00011232,2]
[351268355,1738504255530,-500.0,0.00011232,2]
[351268356,1738504255539,-500.0,0.00011232,2]
[351268357,1738504255548,-500.0,0.00011232,2]
[351268358,1738504255557,-500.0,0.00011232,2]
[351268359,1738504255566,-587.58,0.00011232,2]
[351268360,1738504255575,-500.0,0.00011232,2]
[351268361,1738504255584,-500.0,0.00011232,2]
[351268362,1738504255593,-613.32,0.00011232,2]
[351268363,1738504255612,-500.0,0.00011232,2]
[351268364,1738504255622,-500.0,0.00011232,2]
[351268365,1738504255631,-500.0,0.00011232,2]
[351268366,1738504255641,-511.96,0.00011232,2]
[351268367,1738504255650,-500.0,0.00011232,2]
[351268368,1738504255857,-500.0,0.00011232,2]
[351268369,1738504255869,-500.0,0.00011232,2]
[351268370,1738504255879,-500.0,0.00011232,2]
[351268371,1738504255889,-500.0,0.00011232,2]
[351268372,1738504255898,-500.0,0.00011232,2]
[351268373,1738504255907,-500.0,0.00011232,2]
[351268374,1738504255917,-500.0,0.00011232,2]
[351268375,1738504255926,-804.93,0.00011232,2]
[351268376,1738504255935,-562.51,0.00011232,2]
[351268377,1738504255945,-542.32237731,0.00011232,2]
[351268378,1738504255955,-500.0,0.00011232,2]
[351268379,1738504255965,-500.0,0.00011232,2]
[351268380,1738504255977,-500.0,0.00011232,2]
[351268381,1738504255986,-515.32866291,0.00011232,2]
[351268382,1738504255996,-500.0,0.00011232,2]
[351268383,1738504256006,-500.0,0.00011232,2]
[351268384,1738504256015,-500.0,0.00011232,2]
[351268385,1738504256024,-500.0,0.00011232,2]
[351268386,1738504256033,-500.0,0.00011232,2]
[351268387,1738504256043,-500.0,0.00011232,2]
[351268388,1738504256053,-500.0,0.00011232,2]
[351268389,1738504256063,-500.0,0.00011232,2]
[351268390,1738504256073,-500.0,0.00011232,2]
[351268391,1738504256083,-500.0,0.00011232,2]
[351268392,1738504256093,-500.0,0.00011232,2]
[351268393,1738504256102,-500.0,0.00011232,2]
[351268394,1738504256111,-692.37,0.00011232,2]
[351268395,1738504256121,-500.0,0.00011232,2]
[351268396,1738504256131,-500.0,0.00011232,2]
[351268397,1738504256140,-500.0,0.00011232,2]
[351268398,1738504256151,-500.0,0.00011232,2]
[351268399,1738504256162,-621.35,0.00011232,2]
[351268400,1738504256178,-500.0,0.00011232,2]
[351268401,1738504256187,-673.47,0.00011232,2]
[351268402,1738504256201,-500.0,0.00011232,2]
[351268403,1738504256211,-500.0,0.00011232,2]
[351268404,1738504256220,-1236.43,0.00011232,2]
[351268405,1738504256230,-500.0,0.00011232,2]
[351268406,1738504256240,-500.0,0.00011232,2]
[351268407,1738504256251,-507.22,0.00011232,2]
[351268408,1738504256260,-500.0,0.00011232,2]
[351268409,1738504256270,-500.0,0.00011232,2]
[351268410,1738504256280,-965.22,0.00011232,2]
[351268411,1738504256289,-500.0,0.00011232,2]
[351268412,1738504256299,-1101.6,0.00011232,2]
[351268413,1738504256308,-778.66,0.00011232,2]
[351268414,1738504256318,-801.88,0.00011232,2]
[351268415,1738504256327,-500.0,0.00011232,2]
[351268416,1738504256337,-500.0,0.00011232,2]
[351268417,1738504256347,-500.0,0.00011232,2]
[351268418,1738504256357,-500.0,0.00011232,2]
[351268419,1738504256366,-500.0,0.00011232,2]
[351268420,1738504256375,-500.0,0.00011232,2]
[351268421,1738504256384,-500.0,0.00011232,2]
[351268422,1738504256393,-627.76,0.00011232,2]
[351268423,1738504256402,-500.0,0.00011232,2]
[351268424,1738504256414,-500.0,0.00011232,2]
[351268425,1738504256424,-500.0,0.00011232,2]
[351268426,1738504256433,-500.0,0.00011232,2]
[351268427,1738504256442,-658.67,0.00011232,2]
[351268428,1738504256451,-600.42,0.00011232,2]
[351268429,1738504256461,-500.0,0.00011232,2]
[351268430,1738504256470,-500.0,0.00011232,2]
[351268431,1738504256479,-500.0,0.00011232,2]
[351268432,1738504256488,-500.0,0.00011232,2]
[351268433,1738504256497,-500.0,0.00011232,2]
[351268434,1738504256506,-500.0,0.00011232,2]
[351268435,1738504256516,-500.0,0.00011232,2]
[351268436,1738504256526,-500.0,0.00011232,2]
[351268437,1738504256535,-500.0,0.00011232,2]
[351268438,1738504256544,-519.27,0.00011232,2]
[351268439,1738504256554,-500.0,0.00011232,2]
[351268440,1738504256563,-500.0,0.00011232,2]
[351268441,1738504256572,-500.0,0.00011232,2]
[351268442,1738504256582,-500.0,0.00011232,2]
[351268443,1738504256592,-500.0,0.00011232,2]
[351268444,1738504256601,-500.0,0.00011232,2]
[351268445,1738504256610,-500.0,0.00011232,2]
[351268446,1738504256619,-528.02010124,0.00011232,2]
[351268447,1738504256628,-583.74,0.00011232,2]
[351268448,1738504256637,-500.0,0.00011232,2]
[351268449,1738504256646,-500.0,0.00011232,2]
[351268450,1738504256655,-500.0,0.00011232,2]
[351268451,1738504256666,-500.0,0.00011232,2]
[351268452,1738504256675,-500.0,0.00011232,2]
[351268453,1738504256684,-500.0,0.00011232,2]
[351268454,1738504256694,-262.91712401,0.00011232,2]
[351268455,1738504256703,-500.0,0.00011232,2]
[351268456,1738504256712,-886.58,0.00011232,2]
[351268457,1738504256727,-500.0,0.00011232,2]
[351268458,1738504256736,-784.63,0.00011232,2]
[351268459,1738504256745,-523.02809116,0.00011232,2]
[351268460,1738504256755,-500.0,0.00011232,2]
[351268461,1738504256764,-500.0,0.00011232,2]
[351268462,1738504256773,-1054.02,0.00011232,2]
[351268463,1738504256782,-830.47,0.00011232,2]
[351268464,1738504256792,-500.0,0.00011232,2]
[351268465,1738504256801,-2967.16,0.00011232,2]
[351268466,1738504256810,-776.62,0.00011232,2]
[351268467,1738504256820,-497.83196936,0.00011232,2]
[351268468,1738504256833,-2195.36,0.00011232,2]
[351268469,1738504256843,-500.0,0.00011232,2]
[351268470,1738504256852,-156.93472381,0.00011232,2]
[351268471,1738504256862,-1769.98,0.00011232,2]
[351268472,1738504256871,-2722.25,0.00011232,2]
[351268473,1738504256881,-760.42,0.00011232,2]
[351268474,1738504256891,-500.0,0.00011232,2]
[351268475,1738504256900,-500.0,0.00011232,2]
[351268476,1738504256909,-500.0,0.00011232,2]
[351268477,1738504256919,-500.0,0.00011232,2]
[351268478,1738504256929,-2868.69,0.00011232,2]
[351268479,1738504256939,-500.0,0.00011232,2]
[351268480,1738504256948,-500.0,0.00011232,2]
[351268481,1738504256958,-500.0,0.00011232,2]
[351268482,1738504256968,-578.7,0.00011232,2]
[351268483,1738504256978,-500.0,0.00011232,2]
[351268484,1738504256987,-500.0,0.00011232,2]
[351268485,1738504256997,-500.0,0.00011232,2]
[351268486,1738504257007,-500.0,0.00011232,2]
[351268487,1738504257017,-1031.69,0.00011232,2]
[351268488,1738504257027,-812.08,0.00011232,2]
[351268489,1738504257036,-921.95,0.00011232,2]
[351268490,1738504257045,-500.0,0.00011232,2]
[351268491,1738504257055,-500.0,0.00011232,2]
[351268492,1738504257064,-500.0,0.00011232,2]
[351268493,1738504257074,-500.0,0.00011232,2]
[351268494,1738504257084,-2430.17,0.00011232,2]
[351268495,1738504257093,-2706.0,0.00011232,2]
[351268496,1738504257103,-500.0,0.00011232,2]
[351268497,1738504257113,-500.0,0.00011232,2]
[351268498,1738504257123,-500.0,0.00011232,2]
[351268499,1738504257134,-508.86293163,0.00011232,2]
[351268500,1738504257144,-500.0,0.00011232,2]